bitfinex-derivatives/quotes_BTCF0:USTF0_20241227
["timestamp","ask_amount","ask_price","bid_price","bid_amount"]
[1735280817066,0.051974,96312.0,96306.0,0.051977]
[1735280817465,0.051975,96311.0,96306.0,0.051977]
[1735280817667,0.12448312,96318.0,96306.0,0.051977]
[1735280817868,0.051974,96311.0,96306.0,0.051977]
[1735280818071,0.051974,96311.0,96306.0,0.052977]
[1735280819465,0.0109478,96320.0,96309.0,0.051975]
[1735280819661,0.051971,96318.0,96314.0,0.051973]
[1735280820269,0.051971,96318.0,96316.0,0.051972]
[1735280820467,0.051971,96318.0,96311.0,0.0369]
[1735280820468,0.01115731,96322.0,96317.0,0.0352]
[1735280820673,0.17645212,96323.0,96317.0,0.087171]
[1735280820874,0.05197,96321.0,96317.0,0.087171]
[1735280821277,0.12448312,96323.0,96317.0,0.087171]
[1735280821471,0.051971,96319.0,96317.0,0.0352]
[1735280821975,0.001,96318.0,96317.0,0.0352]
[1735280822369,0.051971,96319.0,96317.0,0.0352]
[1735280822870,0.052971,96319.0,96317.0,0.0352]
[1735280823477,0.053971,96319.0,96317.0,0.0352]
[1735280824368,0.00026612,96318.0,96317.0,0.22141916]
[1735280825572,0.00126612,96318.0,96317.0,0.22141916]
[1735280825973,0.00226612,96318.0,96317.0,0.22141916]
[1735280826868,0.00126612,96318.0,96317.0,0.22341916]
[1735280827973,0.00026612,96318.0,96317.0,0.22541916]
[1735280828576,0.00026612,96318.0,96317.0,0.092171]
[1735280828878,0.00155771,96325.0,96323.0,0.051968]
[1735280829477,0.12448312,96330.0,96329.0,0.051965]
[1735280830077,0.05196,96338.0,96331.0,0.051964]
[1735280830274,0.05196,96338.0,96333.0,0.051962]
[1735280831279,0.06265947,96338.0,96333.0,0.051962]
[1735280831583,0.06265947,96338.0,96333.0,0.29963991]
[1735280831776,0.06365947,96338.0,96335.0,0.051961]
[1735280832580,0.06365947,96338.0,96336.0,0.0341]
[1735280832778,0.01069947,96338.0,96336.0,0.086061]
[1735280832978,0.001,96338.0,96336.0,0.086061]
[1735280833179,0.00101772,96337.0,96336.0,0.086061]
[1735280834577,0.001,96338.0,96336.0,0.086061]
[1735280834877,0.14169796,96339.0,96336.0,0.0341]
[1735280835075,0.001,96337.0,96336.0,0.086061]
[1735280835979,0.01105093,96342.0,96339.0,0.051959]
[1735280836180,0.051956,96346.0,96340.0,0.051959]
[1735280836379,0.051956,96346.0,96337.0,0.18561895]
[1735280836380,0.051956,96346.0,96343.0,0.051957]
[1735280837085,0.01243874,96350.0,96337.0,0.18561895]
[1735280837381,0.001,96346.0,96336.0,0.0341]
[1735280837975,0.002,96346.0,96336.0,0.0341]
[1735280838175,0.002,96346.0,96344.0,0.051956]
[1735280838682,0.003,96346.0,96344.0,0.051956]
[1735280840185,0.001,96346.0,96344.0,0.051956]
[1735280841890,0.003,96346.0,96344.0,0.051956]
[1735280847091,0.003,96346.0,96344.0,0.23757495]
[1735280848489,0.003,96346.0,96345.0,0.18561895]
[1735280849488,0.001,96346.0,96345.0,0.18561895]
[1735280849689,0.003,96346.0,96345.0,0.18661895]
[1735280850093,0.003,96346.0,96345.0,0.001]
[1735280857397,0.00416462,96346.0,96345.0,0.001]
[1735280857694,0.01077802,96357.0,96356.0,0.05195]
[1735280857892,0.051949,96358.0,96356.0,0.05195]
[1735280858795,0.001,96357.0,96356.0,0.05295]
[1735280859002,0.005,96357.0,96356.0,0.05295]
[1735280859589,0.001,96357.0,96356.0,0.05295]
[1735280860794,0.055949,96358.0,96356.0,0.05195]
[1735280860995,0.055949,96358.0,96356.0,0.05295]
[1735280861196,0.004,96358.0,96356.0,0.05295]
[1735280861900,0.003,96357.0,96356.0,0.05295]
[1735280862496,0.003,96357.0,96356.0,0.30068421]
[1735280862791,0.003,96358.0,96356.0,0.30068421]
[1735280863498,0.003,96357.0,96356.0,0.30068421]
[1735280864099,0.003,96357.0,96356.0,0.05295]
[1735280865099,0.004,96358.0,96357.0,0.05195]
[1735280865494,0.004,96358.0,96357.0,0.08915]
[1735280866398,0.09303161,96362.0,96361.0,0.051947]
[1735280866599,0.10415219,96362.0,96361.0,0.051947]
[1735280867099,0.035,96364.0,96362.0,0.051947]
[1735280867297,0.0459805,96364.0,96362.0,0.051947]
[1735280867900,0.0459805,96364.0,96363.0,0.24815824]
[1735280869301,0.0459805,96364.0,96362.0,0.051947]
[1735280869302,0.0459805,96364.0,96362.0,0.30010524]
[1735280870507,0.0459805,96364.0,96363.0,0.24815824]
[1735280872307,0.0459805,96364.0,96362.0,0.30010524]
[1735280873302,0.0109805,96364.0,96362.0,0.30010524]
[1735280873503,0.12448312,96366.0,96364.0,0.051946]
[1735280874307,0.09343152,96365.0,96364.0,0.30010424]
[1735280875802,0.09743152,96365.0,96364.0,0.30110424]
[1735280876205,0.09743152,96365.0,96364.0,0.30010424]
[1735280876411,0.09743152,96365.0,96364.0,0.30110424]
[1735280881613,0.004,96365.0,96364.0,0.30110424]
[1735280882718,0.004,96365.0,96364.0,0.052946]
[1735280891522,0.004,96365.0,96364.0,0.001]
[1735280892424,0.004,96365.0,96364.0,0.31147144]
[1735280894723,0.004,96365.0,96364.0,0.51243802]
[1735280899817,0.004,96365.0,96364.0,0.001]
[1735280904421,0.004,96365.0,96364.0,0.31147144]
[1735280905527,0.004,96365.0,96364.0,0.51228408]
[1735280906621,0.09744377,96365.0,96364.0,0.001]
[1735280909721,0.09744377,96365.0,96364.0,0.31147144]
[1735280912326,0.004,96365.0,96364.0,0.31147144]
[1735280916232,0.09748487,96365.0,96364.0,0.2018242]
[1735280919142,0.004,96365.0,96364.0,0.2018242]
[1735280921140,0.051944,96369.0,96365.0,0.051945]
[1735280922341,0.055944,96369.0,96365.0,0.051945]
[1735280922544,0.055944,96369.0,96367.0,0.31036686]
[1735280922942,0.06687162,96369.0,96367.0,0.31036686]
[1735280925352,0.19135474,96369.0,96367.0,0.31036686]
[1735280925549,0.19135474,96369.0,96367.0,0.31136686]
[1735280927952,0.0342,96368.0,96367.0,0.31136686]
[1735280929147,0.0382,96368.0,96367.0,0.31136686]
[1735280929652,0.0382,96368.0,96367.0,0.001]
[1735280930953,0.004,96368.0,96367.0,0.001]
[1735280931450,0.00418597,96368.0,96367.0,0.001]
[1735280933647,0.09765555,96368.0,96367.0,0.001]
[1735280934949,0.00418597,96368.0,96367.0,0.001]
[1735280937161,0.09765169,96368.0,96367.0,0.001]
[1735280939055,0.00418597,96368.0,96367.0,0.20183349]
[1735280948861,0.04135169,96371.0,96370.0,0.051943]
[1735280949762,0.01089001,96372.0,96370.0,0.051943]
[1735280949962,0.17656958,96377.0,96369.0,0.3101861]
[1735280950164,0.17656958,96377.0,96371.0,0.051942]
[1735280951467,0.051939,96377.0,96375.0,0.3101861]
[1735280952463,0.06250939,96377.0,96375.0,0.3101861]
[1735280952862,0.06250939,96377.0,96374.0,0.3101861]
[1735280953065,0.06250939,96377.0,96375.0,0.001]
[1735280954563,0.06250939,96377.0,96374.0,0.001]
[1735280954967,0.05194,96376.0,96374.0,0.001]
[1735280955167,0.05194,96374.0,96373.0,0.07926396]
[1735280955374,0.4069,96376.0,96370.0,0.02296396]
[1735280955672,0.051942,96371.0,96370.0,0.02296396]
[1735280957168,0.051945,96365.0,96364.0,0.18615614]
[1735280959171,0.053945,96365.0,96364.0,0.18615614]
[1735280959371,0.053945,96365.0,96363.0,0.18615614]
[1735280959966,0.054945,96365.0,96363.0,0.18615614]
[1735280960566,0.053945,96365.0,96363.0,0.18615614]
[1735280960771,0.053945,96365.0,96364.0,0.18615614]
[1735280960772,0.052945,96365.0,96364.0,0.18615614]
[1735280960974,0.053945,96365.0,96364.0,0.18615614]
[1735280961870,0.052945,96365.0,96364.0,0.18615614]
[1735280962064,0.053945,96365.0,96364.0,0.18615614]
[1735280963981,0.053945,96365.0,96363.0,0.18615614]
[1735280964171,0.06482645,96365.0,96363.0,0.18615614]
[1735280965073,0.01288145,96365.0,96362.0,0.18615614]
[1735280965276,0.051946,96364.0,96362.0,0.18615614]
[1735280967480,0.052946,96364.0,96361.0,0.18615614]
[1735280968267,0.053946,96364.0,96361.0,0.18615614]
[1735280968677,0.051946,96364.0,96361.0,0.18615614]
[1735280968978,0.052946,96364.0,96360.0,0.18615614]
[1735280970677,0.052946,96364.0,96361.0,0.18615614]
[1735280971381,0.051946,96364.0,96361.0,0.18615614]
[1735280971573,0.052946,96364.0,96361.0,0.18615614]
[1735280971875,0.051946,96364.0,96363.0,0.18615614]
[1735280972071,0.052946,96364.0,96363.0,0.18615614]
[1735280973584,0.053946,96364.0,96363.0,0.18615614]
[1735280974489,0.052946,96364.0,96363.0,0.18615614]
[1735280974781,0.053946,96364.0,96361.0,0.051947]
[1735280976180,0.052946,96364.0,96361.0,0.051947]
[1735280978682,0.001,96364.0,96359.0,0.28530818]
[1735280978886,0.001,96364.0,96363.0,0.051946]
[1735280980479,0.002,96364.0,96363.0,0.051946]
[1735280980680,0.001,96364.0,96363.0,0.051946]
[1735280980892,0.002,96364.0,96363.0,0.051946]
[1735280981079,0.051943,96370.0,96368.0,0.051944]
[1735280981279,0.06231927,96370.0,96368.0,0.051944]
[1735280982589,0.06331927,96370.0,96368.0,0.052944]
[1735280991398,0.052943,96370.0,96368.0,0.052944]
[1735280999801,0.001,96370.0,96368.0,0.052944]
[1735281001707,0.00016842,96369.0,96368.0,0.052944]
[1735281003408,0.00016842,96369.0,96368.0,0.051944]
[1735281003610,0.00016842,96369.0,96368.0,0.052944]
[1735281003913,0.051942,96371.0,96368.0,0.052944]
[1735281004627,0.0104913,96374.0,96368.0,0.001]
[1735281004810,0.1244966,96377.0,96373.0,0.051941]
[1735281005011,0.1244966,96377.0,96374.0,0.0713]
[1735281005212,0.1244966,96377.0,96374.0,0.106]
[1735281005716,0.13504843,96377.0,96374.0,0.106]
[1735281006031,0.01055183,96377.0,96374.0,0.106]
[1735281006323,0.051939,96378.0,96375.0,0.05194]
[1735281007611,0.051939,96378.0,96375.0,0.05294]
[1735281008617,0.06271499,96378.0,96377.0,0.24824822]
[1735281009717,0.06271499,96378.0,96375.0,0.05294]
[1735281010119,0.06271499,96378.0,96377.0,0.001]
[1735281013915,0.01077599,96378.0,96377.0,0.052939]
[1735281014119,0.15526075,96381.0,96377.0,0.052939]
[1735281014522,0.12459299,96382.0,96378.0,0.0725]
[1735281015021,0.12459299,96382.0,96380.0,0.051937]
[1735281015224,0.13534479,96382.0,96380.0,0.051937]
[1735281015821,0.0107518,96382.0,96380.0,0.051937]
[1735281016020,0.00155685,96385.0,96380.0,0.051937]
[1735281016828,0.00155685,96385.0,96380.0,0.052937]
[1735281017326,0.00155685,96385.0,96381.0,0.19081513]
[1735281017528,0.00155685,96385.0,96382.0,0.31011594]
[1735281017919,0.051935,96384.0,96382.0,0.31011594]
[1735281018726,0.051935,96384.0,96380.0,0.052937]
[1735281019426,0.051935,96384.0,96382.0,0.051936]
[1735281019729,0.12459299,96392.0,96381.0,0.001]
[1735281019933,0.13496189,96392.0,96381.0,0.001]
[1735281020133,0.13496189,96392.0,96382.0,0.24802599]
[1735281021028,0.051932,96390.0,96383.0,0.051935]
[1735281021224,0.13496189,96392.0,96383.0,0.051935]
[1735281021425,0.051933,96389.0,96384.0,0.24802599]
[1735281023421,0.051933,96389.0,96384.0,0.25402599]
[1735281024127,0.051933,96389.0,96386.0,0.24802599]
[1735281025634,0.051933,96387.0,96386.0,0.24802599]
[1735281025936,0.051933,96387.0,96386.0,0.25402599]
[1735281026637,0.051933,96387.0,96386.0,0.25802599]
[1735281026931,0.051933,96387.0,96386.0,0.25202599]
[1735281027131,0.051933,96387.0,96386.0,0.25902599]
[1735281027332,0.051933,96387.0,96386.0,0.26002599]
[1735281028824,0.051933,96387.0,96386.0,0.012]
[1735281030737,0.051933,96387.0,96386.0,0.26002599]
[1735281031128,0.01055351,96389.0,96386.0,0.26002599]
[1735281031129,0.01055351,96389.0,96387.0,0.051933]
[1735281031333,0.051928,96397.0,96386.0,0.26002599]
[1735281031640,0.051928,96397.0,96392.0,0.05193]
[1735281031842,0.051928,96397.0,96393.0,0.0364]
[1735281032233,0.051928,96397.0,96393.0,0.22234463]
[1735281033432,0.051928,96397.0,96393.0,0.22334463]
[1735281033632,0.051928,96397.0,96394.0,0.0351]
[1735281033829,0.01076334,96399.0,96394.0,0.0351]
[1735281034028,0.1,96400.0,96396.0,0.051928]
[1735281034238,0.1,96400.0,96397.0,0.051928]
[1735281036038,0.1,96400.0,96397.0,0.052928]
[1735281036736,0.1,96400.0,96397.0,0.30095399]
[1735281037943,0.1,96400.0,96397.0,0.052928]
[1735281038543,0.1,96400.0,96397.0,0.051928]
[1735281039444,0.051928,96398.0,96396.0,0.24802599]
[1735281041241,0.051928,96398.0,96395.0,0.0366]
[1735281041242,0.051929,96396.0,96395.0,0.22246561]
[1735281042343,0.051929,96396.0,96395.0,0.28462599]
[1735281043438,0.051929,96396.0,96395.0,0.0366]
[1735281047947,0.1,96400.0,96395.0,0.0366]
[1735281048140,0.1,96400.0,96399.0,0.051927]
[1735281049252,0.1,96400.0,96399.0,0.052927]
[1735281063175,0.10011318,96400.0,96399.0,0.052927]
[1735281064864,0.10011318,96400.0,96399.0,0.36304294]
[1735281069269,0.19354705,96400.0,96399.0,0.052927]
[1735281070469,0.10011318,96400.0,96399.0,0.36304294]
[1735281071980,0.19354705,96400.0,96399.0,0.5522577]
[1735281073081,0.19354705,96400.0,96399.0,0.24214176]
[1735281078379,0.15526075,96411.0,96399.0,0.19021476]
[1735281078581,0.15526075,96410.0,96401.0,0.06796167]
[1735281078780,0.15526075,96410.0,96406.0,0.051923]
[1735281078986,0.15526075,96410.0,96408.0,0.051922]
[1735281079184,0.20718175,96410.0,96409.0,0.0346]
[1735281080083,0.051921,96410.0,96409.0,0.18921476]
[1735281080489,0.051923,96407.0,96405.0,0.13733353]
[1735281081290,0.051925,96402.0,96401.0,0.31020219]
[1735281082806,0.05491228,96402.0,96386.0,0.24819123]
[1735281083007,0.06796167,96396.0,96386.0,0.24819123]
[1735281083191,0.051933,96389.0,96386.0,0.24819123]
[1735281083900,0.051933,96389.0,96384.0,0.24819123]
[1735281084701,0.053933,96389.0,96386.0,0.001]
[1735281084905,0.002,96389.0,96386.0,0.001]
[1735281085097,0.051933,96388.0,96386.0,0.001]
[1735281086599,0.051933,96388.0,96384.0,0.001]
[1735281087195,0.013167,96391.0,96386.0,0.001]
[1735281087399,0.051933,96387.0,96386.0,0.001]
[1735281088102,0.051933,96387.0,96384.0,0.001]
[1735281088297,0.051935,96385.0,96384.0,0.001]
[1735281089799,0.052933,96387.0,96386.0,0.001]
[1735281090000,0.051933,96387.0,96386.0,0.001]
[1735281090392,0.06479665,96387.0,96386.0,0.001]
[1735281090598,0.051934,96386.0,96384.0,0.001]
[1735281091299,0.06579665,96387.0,96386.0,0.001]
[1735281092703,0.06479665,96387.0,96386.0,0.001]
[1735281093009,0.051937,96380.0,96366.0,0.24819123]
[1735281093201,0.06796167,96390.0,96370.0,0.06796167]
[1735281093403,0.001,96387.0,96380.0,0.1063]
[1735281093702,0.052933,96387.0,96386.0,0.001]
[1735281094411,0.06796167,96396.0,96380.0,0.1083]
[1735281094412,0.051935,96385.0,96380.0,0.1083]
[1735281095810,0.051936,96383.0,96380.0,0.1063]
[1735281096503,0.051936,96383.0,96380.0,0.1073]
[1735281096702,0.051937,96381.0,96380.0,0.1093]
[1735281103115,0.051937,96381.0,96380.0,0.0393]
[1735281103317,0.051937,96381.0,96380.0,0.003]
[1735281104514,0.351937,96381.0,96380.0,0.003]
[1735281104719,0.051943,96369.0,96368.0,0.0673]
[1735281104910,0.051943,96369.0,96367.0,0.0344]
[1735281105114,0.051943,96369.0,96364.0,0.24819123]
[1735281105115,0.051945,96365.0,96364.0,0.24819123]
[1735281105614,0.06796167,96374.0,96359.0,0.24819123]
[1735281105816,0.18786634,96369.0,96368.0,0.005]
[1735281106018,0.051943,96369.0,96368.0,0.005]
[1735281106211,0.351943,96369.0,96368.0,0.005]
[1735281106411,0.351943,96369.0,96367.0,0.007]
[1735281106611,0.051945,96365.0,96364.0,0.009]
[1735281107219,0.051945,96365.0,96364.0,0.004]
[1735281108617,0.051945,96365.0,96356.0,0.0337]
[1735281108926,0.05195,96357.0,96356.0,0.0337]
[1735281110226,0.051956,96346.0,96345.0,0.24819123]
[1735281112019,0.051956,96346.0,96345.0,0.008]
[1735281112721,0.051956,96346.0,96345.0,0.009]
[1735281112919,0.051956,96346.0,96345.0,0.003]
[1735281114827,0.06448459,96346.0,96345.0,0.003]
[1735281117121,0.06533057,96346.0,96345.0,0.002]
[1735281117322,0.06633057,96346.0,96345.0,0.002]
[1735281117724,0.06533057,96346.0,96345.0,0.002]
[1735281117923,0.06733057,96346.0,96345.0,0.002]
[1735281119126,0.05480198,96346.0,96345.0,0.002]
[1735281119431,0.00128,96360.0,96353.0,0.051952]
[1735281119619,0.16802975,96361.0,96354.0,0.07]
[1735281119820,0.00124001,96365.0,96359.0,0.051948]
[1735281120030,0.20055918,96370.0,96359.0,0.051948]
[1735281120233,0.01282136,96367.0,96359.0,0.051948]
[1735281121123,0.06476536,96367.0,96359.0,0.051948]
[1735281122229,0.05350248,96366.0,96359.0,0.051948]
[1735281122433,0.05350248,96366.0,96360.0,0.0366]
[1735281124631,0.05350248,96366.0,96360.0,0.0386]
[1735281125532,0.00155748,96366.0,96360.0,0.0386]
[1735281125731,0.051947,96362.0,96360.0,0.0386]
[1735281127624,0.055947,96362.0,96360.0,0.0366]
[1735281134131,0.00041051,96361.0,96360.0,0.0366]
[1735281134533,0.00041051,96361.0,96360.0,0.088548]
[1735281136341,0.00441051,96361.0,96360.0,0.088548]
[1735281136643,0.004,96361.0,96360.0,0.088548]
[1735281136941,0.001,96361.0,96360.0,0.089548]
[1735281143134,0.00155748,96366.0,96360.0,0.089548]
[1735281143342,0.12427467,96379.0,96360.0,0.089548]
[1735281143541,0.12427467,96379.0,96370.0,0.051943]
[1735281143542,0.17621267,96379.0,96370.0,0.051943]
[1735281143747,0.17621267,96379.0,96375.0,0.05194]
[1735281145040,0.051938,96379.0,96375.0,0.05194]
[1735281145451,0.052938,96379.0,96377.0,0.051939]
[1735281145850,0.051938,96379.0,96377.0,0.051939]
[1735281146051,0.061938,96379.0,96377.0,0.051939]
[1735281146644,0.060938,96379.0,96377.0,0.052939]
[1735281146844,0.058938,96379.0,96377.0,0.052939]
[1735281147044,0.060938,96379.0,96377.0,0.052939]
[1735281147739,0.009,96379.0,96377.0,0.052939]
[1735281150445,0.009,96379.0,96378.0,0.24819123]
[1735281151747,0.007,96379.0,96378.0,0.24819123]
[1735281151949,0.12427467,96392.0,96378.0,0.24819123]
[1735281151950,0.12427467,96392.0,96378.0,0.24919123]
[1735281152156,0.12427467,96392.0,96390.0,0.051931]
[1735281152350,0.12427467,96392.0,96391.0,0.1038]
[1735281152746,0.15549207,96399.0,96398.0,0.051928]
[1735281153454,0.05347643,96412.0,96391.0,0.1038]
[1735281153653,0.051921,96411.0,96403.0,0.051925]
[1735281153959,0.051922,96409.0,96403.0,0.051925]
[1735281154958,0.051922,96409.0,96405.0,0.18530828]
[1735281156151,0.051922,96409.0,96403.0,0.051925]
[1735281156346,0.051922,96409.0,96405.0,0.001]
[1735281157262,0.051922,96409.0,96404.0,0.051924]
[1735281158961,0.051922,96409.0,96405.0,0.001]
[1735281159458,0.051922,96409.0,96404.0,0.001]
[1735281159655,0.051922,96409.0,96406.0,0.051923]
[1735281159962,0.00155643,96412.0,96410.0,0.051921]
[1735281162351,0.00155643,96412.0,96410.0,0.052921]
[1735281171271,0.051919,96414.0,96410.0,0.052921]
[1735281177070,0.05192,96413.0,96410.0,0.052921]
[1735281177270,0.051921,96411.0,96410.0,0.001]
[1735281178374,0.01190184,96420.0,96410.0,0.052921]
[1735281178564,0.051918,96417.0,96410.0,0.052921]
[1735281179166,0.051918,96416.0,96410.0,0.052921]
[1735281179368,0.0353,96428.0,96411.0,0.0326]
[1735281179682,0.04724782,96428.0,96415.0,0.051918]
[1735281180379,0.051916,96420.0,96415.0,0.051918]
[1735281180576,0.051917,96419.0,96415.0,0.051918]
[1735281181675,0.01194782,96428.0,96413.0,0.18530828]
[1735281181878,0.051913,96425.0,96420.0,0.051915]
[1735281182766,0.15549207,96429.0,96428.0,0.051911]
[1735281183578,0.15549207,96430.0,96428.0,0.051911]
[1735281183765,0.15549207,96430.0,96429.0,0.0332]
[1735281183969,0.15549207,96430.0,96429.0,0.1027]
[1735281184777,0.05346398,96434.0,96429.0,0.1027]
[1735281185077,0.05346398,96434.0,96430.0,0.05191]
[1735281186278,0.05346398,96434.0,96431.0,0.18562795]
[1735281187076,0.05346398,96434.0,96430.0,0.23853795]
[1735281187273,0.00155598,96434.0,96430.0,0.18662795]
[1735281187479,0.051909,96432.0,96430.0,0.18662795]
[1735281188379,0.051909,96432.0,96430.0,0.001]
[1735281188782,0.00155598,96434.0,96427.0,0.18562795]
[1735281188981,0.00155598,96434.0,96431.0,0.001]
[1735281189685,0.051911,96428.0,96427.0,0.18562795]
[1735281189879,0.051911,96428.0,96422.0,0.29941793]
[1735281190082,0.051912,96427.0,96422.0,0.29941793]
[1735281193182,0.051912,96427.0,96422.0,0.24850393]
[1735281193981,0.00155598,96434.0,96422.0,0.24850393]
[1735281194182,0.051909,96432.0,96429.0,0.051911]
[1735281194385,0.00155598,96434.0,96432.0,0.051909]
[1735281195889,0.051902,96446.0,96432.0,0.001]
[1735281196384,0.051903,96445.0,96431.0,0.051909]
[1735281196591,0.051903,96444.0,96433.0,0.18550276]
[1735281197085,0.10337695,96450.0,96437.0,0.051906]
[1735281197387,0.051906,96438.0,96433.0,0.18550276]
[1735281197977,0.051906,96438.0,96437.0,0.18550276]
[1735281199787,0.051906,96438.0,96437.0,0.001]
[1735281202897,0.0635457,96438.0,96437.0,0.001]
[1735281203193,0.0635457,96438.0,96430.0,0.18550276]
[1735281203392,0.05191,96431.0,96430.0,0.18550276]
[1735281204284,0.051912,96427.0,96426.0,0.18550276]
[1735281205895,0.051914,96423.0,96416.0,0.23742076]
[1735281207805,0.052914,96423.0,96416.0,0.23842076]
[1735281208607,0.09421629,96423.0,96417.0,0.18550276]
[1735281208806,0.051915,96422.0,96417.0,0.18550276]
[1735281209004,0.051915,96422.0,96417.0,0.23741976]
[1735281209600,0.14513129,96422.0,96417.0,0.23741976]
[1735281209801,0.14513129,96422.0,96417.0,0.23841976]
[1735281209999,0.051916,96420.0,96417.0,0.23841976]
[1735281211404,0.052916,96420.0,96417.0,0.23841976]
[1735281212207,0.052916,96420.0,96418.0,0.18550276]
[1735281213311,0.052916,96420.0,96418.0,0.18650276]
[1735281213812,0.052916,96420.0,96418.0,0.001]
[1735281215910,0.051917,96417.0,96412.0,0.19343202]
[1735281216111,0.051917,96417.0,96409.0,0.19343202]
[1735281216309,0.051921,96410.0,96409.0,0.19343202]
[1735281217410,0.051924,96406.0,96398.0,0.051927]
[1735281219011,0.051924,96405.0,96398.0,0.051927]
[1735281219217,0.051924,96405.0,96398.0,0.054927]
[1735281219611,0.1965512,96410.0,96398.0,0.003]
[1735281219813,0.1965512,96410.0,96405.0,0.051924]
[1735281220013,0.051922,96408.0,96405.0,0.051924]
[1735281220918,0.01129881,96410.0,96407.0,0.051923]
[1735281221121,0.09317425,96411.0,96408.0,0.1024]
[1735281221613,0.09317425,96415.0,96408.0,0.1024]
[1735281222219,0.051922,96409.0,96408.0,0.1024]
[1735281222921,0.051922,96409.0,96408.0,0.0692]
[1735281223511,0.052922,96409.0,96408.0,0.0692]
[1735281241223,0.052922,96409.0,96408.0,0.001]
[1735281241731,0.089022,96409.0,96408.0,0.001]
[1735281241922,0.051928,96397.0,96396.0,0.31020219]
[1735281242126,0.051928,96397.0,96390.0,0.00155598]
[1735281242127,0.051931,96391.0,96390.0,0.00155598]
[1735281242522,0.051933,96388.0,96387.0,0.31020219]
[1735281243533,0.051933,96388.0,96369.0,0.43745774]
[1735281243534,0.051938,96379.0,96373.0,0.31020219]
[1735281244731,0.051938,96379.0,96364.0,0.0346]
[1735281244933,0.051938,96379.0,96378.0,0.0362]
[1735281246425,0.051938,96379.0,96378.0,0.0382]
[1735281247739,0.1450837,96379.0,96378.0,0.0382]
[1735281248832,0.051938,96379.0,96378.0,0.0382]
[1735281251447,0.051938,96379.0,96378.0,0.004]
[1735281252443,0.06345742,96379.0,96378.0,0.004]
[1735281260044,0.051945,96366.0,96365.0,0.0354]
[1735281260244,0.051947,96362.0,96361.0,0.0363]
[1735281262247,0.051947,96362.0,96361.0,0.0453]
[1735281262947,0.051947,96362.0,96361.0,0.0513]
[1735281263642,0.0630815,96362.0,96361.0,0.0513]
[1735281266848,0.0640815,96362.0,96361.0,0.0453]
[1735281267348,0.1572272,96362.0,96361.0,0.0453]
[1735281268350,0.1632272,96362.0,96361.0,0.0363]
[1735281269054,0.0700815,96362.0,96361.0,0.0363]
[1735281288063,0.0690815,96362.0,96361.0,0.0363]
[1735281288758,0.0630815,96362.0,96361.0,0.0363]
[1735281289069,0.0660815,96362.0,96361.0,0.0363]
[1735281291168,0.22154288,96362.0,96361.0,0.0363]
[1735281293663,0.0660815,96362.0,96361.0,0.0363]
[1735281297374,0.22188123,96362.0,96361.0,0.0363]
[1735281299471,0.0660815,96362.0,96361.0,0.0363]
[1735281300875,0.05195,96357.0,96356.0,0.24799251]
[1735281301969,0.05195,96357.0,96351.0,0.0352]
[1735281301970,0.051952,96352.0,96351.0,0.0352]
[1735281303274,0.051955,96347.0,96346.0,0.24799251]
[1735281303972,0.051959,96340.0,96339.0,0.31020219]
[1735281304474,0.051959,96340.0,96334.0,0.0347]
[1735281304475,0.05482663,96347.0,96334.0,0.0347]
[1735281304676,0.051962,96335.0,96334.0,0.0347]
[1735281306172,0.051962,96335.0,96334.0,0.0387]
[1735281306995,0.051969,96322.0,96321.0,0.0679]
[1735281308494,0.051969,96322.0,96321.0,0.0749]
[1735281308696,0.051969,96322.0,96321.0,0.0789]
[1735281311495,0.051969,96322.0,96321.0,0.0444]
[1735281315201,0.06320174,96322.0,96321.0,0.0444]
[1735281316387,0.06320174,96322.0,96311.0,0.0363]
[1735281316592,0.051974,96312.0,96311.0,0.0363]
[1735281316794,0.051974,96312.0,96304.0,0.0354]
[1735281316795,0.051978,96305.0,96304.0,0.0354]
[1735281318203,0.051978,96305.0,96304.0,0.0444]
[1735281319393,0.052978,96305.0,96304.0,0.0514]
[1735281319894,0.053978,96305.0,96304.0,0.0514]
[1735281320302,0.051979,96302.0,96301.0,0.0334]
[1735281321494,0.052979,96302.0,96301.0,0.0424]
[1735281321698,0.053979,96302.0,96301.0,0.0494]
[1735281322399,0.06469888,96302.0,96301.0,0.0424]
[1735281322894,0.06469888,96302.0,96301.0,0.009]
[1735281323096,0.06469888,96302.0,96290.0,0.0351]
[1735281323097,0.06669888,96302.0,96291.0,0.0328]
[1735281323304,0.01471988,96302.0,96276.0,0.0329]
[1735281323505,0.051993,96278.0,96277.0,0.0328]
[1735281324800,0.10363438,96286.0,96264.0,0.0335]
[1735281324801,0.051997,96269.0,96264.0,0.0335]
[1735281325004,0.051997,96269.0,96264.0,0.0689]
[1735281326304,0.052997,96269.0,96264.0,0.0749]
[1735281326505,0.053997,96269.0,96264.0,0.0799]
[1735281326999,0.002,96269.0,96264.0,0.0799]
[1735281327205,0.051998,96268.0,96264.0,0.0799]
[1735281327499,0.09327259,96288.0,96264.0,0.3799]
[1735281327699,0.051992,96278.0,96274.0,0.051994]
[1735281328098,0.10363438,96280.0,96274.0,0.051994]
[1735281328099,0.051993,96277.0,96274.0,0.051994]
[1735281329107,0.001,96268.0,96266.0,0.051998]
[1735281329311,0.051989,96285.0,96275.0,0.051994]
[1735281329603,0.051989,96285.0,96270.0,0.10363438]
[1735281329807,0.001,96277.0,96274.0,0.01]
[1735281330105,0.051989,96285.0,96280.0,0.051991]
[1735281331899,0.051989,96285.0,96280.0,0.054991]
[1735281332700,0.052989,96285.0,96280.0,0.060991]
[1735281333205,0.052989,96285.0,96281.0,0.034]
[1735281334305,0.052989,96285.0,96281.0,0.037]
[1735281335198,0.052989,96285.0,96281.0,0.042]
[1735281342609,0.14626159,96285.0,96281.0,0.042]
[1735281343308,0.051989,96284.0,96281.0,0.042]